Cogmind - Beta 10.2 @@@ ROGUE MODE // 2021.01.02 @ 17:16:23 Player: aoemica Result: Self-destructed Performance ------------- Evolutions (9) 4500 Regions Visited (30) 6000 Robots Destroyed (791) 3955 Value Destroyed (39110) 39110 Prototype IDs (92) 1840 Alien Tech Used (6) 1200 Bonus (31441) 31441 TOTAL SCORE: 88046 Bonus ------- Triggered High Security 500 High Alert Combat Kills 9621 Follower Combat Kills 2437 Network Hubs Disabled 200 Met Data Miner 300 Met Zhirov 300 Met Warlord at Base 500 MAIN.C Attacked Warlord 500 Warlord Defense Kill 10738 A7 Reached Mainframe 300 Met R17 at Cetus 500 Used Core Reset Matrix 3000 Met Warlord at Research 2000 Scanned by Researcher 500 Met Sigix 2000 Friendly Fire -1955 Cogmind --------- Core Integrity 1233/1600 Matter 300/300 Energy 396/700 System Corruption 0% Temperature Cool (0) Movement Treading (210) Ox2 Location -1/Access Parts ------- > --- POWER (2) -------- (None) > --- PROPULSION (4) --- Armored Heavy Treads > --- UTILITY (15) ----- Advanced Heat Sink Experimental Heat Sink High-capacity Storage Unit High-capacity Storage Unit High-capacity Storage Unit High-capacity Storage Unit Improved Energy Well Quantum Capacitor EM Dispersion Field Advanced Hacking Suite > --- WEAPON (4) ------- (None) > --- INVENTORY (36) --- Quantum Reactor Vortex Chain Reactor Medium Treads Medium Treads Biometal Heavy Treads Improved Energy Well (600) High-capacity Matter Pod (200) Advanced Terrain Scan Processor Experimental Weapon Shielding Phase Armor Experimental Thermal Shield Advanced Force Field Antimissile System System Purifier Dimensional Node Initializer Subatomic Replicator HERF Cannon HERF Cannon Enhanced Nova Cannon Enhanced Nova Cannon KE Penetrator Helical Railgun Helical Railgun Helical Railgun Mini Smartbomb Launcher Core Stripper Peak State ------------ > --- POWER ------------ Reinforced Antimatter Reactor Light Quantum Reactor > --- PROPULSION ------- Armored Heavy Treads Centrium Heavy Treads > --- UTILITY ---------- Advanced Heat Sink Experimental Heat Sink High-capacity Storage Unit High-capacity Storage Unit High-capacity Storage Unit High-capacity Storage Unit Improved Energy Well Precision Matter Filter Quantum Capacitor EM Dispersion Field Advanced Force Field Advanced Hacking Suite Matter Drive > --- WEAPON ----------- EMDS Sigix Broadsword > --- INVENTORY -------- Quantum Reactor Vortex Chain Reactor Medium Treads Medium Treads Armored Heavy Treads Biometal Heavy Treads Improved Energy Well High-capacity Matter Pod Long-range Sensor Array Advanced Terrain Scan Processor Experimental Weapon Shielding Phase Armor Experimental Thermal Shield Advanced Force Field Antimissile System System Purifier Dimensional Node Initializer Transdimensional Reconstructor Subatomic Replicator HERF Cannon HERF Cannon EMDS Enhanced Nova Cannon Enhanced Nova Cannon KE Penetrator Helical Railgun Helical Railgun Helical Railgun Mini Smartbomb Launcher Core Stripper [Rating: 224] Favorites ----------- Power Antimatter Reactor Engine Reinforced Deuterium Engine Power Core Neutrino Core Reactor Antimatter Reactor Propulsion Centrium Heavy Treads Treads Centrium Heavy Treads Leg Aluminum Leg Wheel Compact Wheel Utility High-capacity Storage Unit Device Long-range Sensor Array Storage High-capacity Storage Unit Processor Experimental Targeting Computer Hackware Advanced Hacking Suite Protection Centrium Medium Armor Plating Artifact Matter Drive Weapon Flak Gun Energy Gun Advanced Beam Rifle Energy Cannon HERF Cannon Ballistic Gun Flak Gun Ballistic Cannon Hypervelocity Mass Driver Launcher Mini Smartbomb Launcher Special Weapon Remote Datajack Slashing Weapon Sigix Broadsword Build | -11 -10 -10 -10 -9 -8 -8 -7 -7 -7 -7 -6 -6 -6 -6 -6 -6 -5 -5 -5 -5 -4 -4 -4 -4 -4 -3 -3 -3 -2 -1 ------- Run | Scr Mat Min Exi Min Mat Sto Fac Low Low Dat Pro Fac Ext Cet Arc Hub Fac Upp Upp Zhi Pro Fac Upp Upp War Pro Res Qua Res Acc Slots Evolved 18 | . . . . . 4 . 2 . . . . 2 . . . . 2 . . . . 2 . . . . 2 . 2 2 Power 1 | . . . . . . . . . . . . . . . . . . . . . . 1 . . . . . . . . Propulsion 2 | . . . . . . . 1 . . . . . . . . . 1 . . . . . . . . . . . . . Utility 13 | . . . . . 4 . . . . . . 2 . . . . 1 . . . . 1 . . . . 2 . 1 2 Weapon 2 | . . . . . . . 1 . . . . . . . . . . . . . . . . . . . . . 1 . Parts Attached 758 | . 11 4 2 5 34 40 43 16 7 3 28 18 44 18 4 41 23 12 10 10 14 112 4 3 63 24 42 62 25 36 Power 35 | . 2 1 . 1 1 6 1 1 . . 1 1 1 1 . 1 1 . . 1 . 2 . . 4 1 1 4 1 2 Engine 11 | . 2 1 . 1 1 1 1 1 . . 1 1 1 . . . . . . . . . . . . . . . . . Core 4 | . . . . . . 1 . . . . . . . . . . 1 . . . . . . . 1 1 . . . . Reactor 20 | . . . . . . 4 . . . . . . . 1 . 1 . . . 1 . 2 . . 3 . 1 4 1 2 Propulsion 73 | . 4 2 . 3 7 8 8 5 1 . 8 1 7 1 . 2 1 . 1 . 1 4 . . 1 2 1 2 . 3 Treads 70 | . 2 2 . 2 7 8 8 5 1 . 8 1 7 1 . 2 1 . 1 . 1 4 . . 1 2 1 2 . 3 Leg . | . . . . . . . . . . . . . . . . . . . . . . . . . . . . . . . Wheel 3 | . 2 . . 1 . . . . . . . . . . . . . . . . . . . . . . . . . . Hover . | . . . . . . . . . . . . . . . . . . . . . . . . . . . . . . . Flight . | . . . . . . . . . . . . . . . . . . . . . . . . . . . . . . . Utility 358 | . 2 . 2 . 14 9 20 7 3 . 6 4 20 6 4 30 17 6 6 6 6 60 1 1 26 8 21 43 14 16 Device 242 | . . . . . 6 7 12 . 1 . 2 2 8 2 2 19 17 4 4 4 5 46 1 1 18 7 16 37 12 9 Storage 24 | . 2 . 2 . 1 . 2 2 . . . . 4 1 . . . . . . . 5 . . 1 . . 1 . 3 Processor 9 | . . . . . 1 . 1 . . . . 1 . . . 1 . 1 . . . 2 . . 1 . . . 1 . Hackware 4 | . . . . . . . . . . . . . . . . 1 . . . . . 1 . . . . 2 . . . Protection 78 | . . . . . 6 2 5 5 2 . 4 1 8 3 2 9 . 1 2 2 1 6 . . 6 1 3 5 1 3 Artifact 1 | . . . . . . . . . . . . . . . . . . . . . . . . . . . . . . 1 Weapon 292 | . 3 1 . 1 12 17 14 3 3 3 13 12 16 10 . 8 4 6 3 3 7 46 3 2 32 13 19 13 10 15 Energy Gun 26 | . . . . . 8 4 1 . . . . . . 2 . . 2 . . . 1 3 . . 2 1 1 1 . . Energy Cannon 76 | . . 1 . . 3 . 1 . . . . 3 4 . . 1 . . . . 3 13 2 2 8 2 7 7 7 12 Ballistic Gun 122 | . 1 . . . 1 8 9 2 2 3 9 6 6 4 . 7 . 3 2 3 2 21 . . 12 6 9 3 2 1 Ballistic Cannon 4 | . . . . . . . . . . . . . . . . . . 1 . . . 3 . . . . . . . . Launcher 49 | . . . . 1 . 3 3 . 1 . 3 1 4 3 . . 2 2 1 . 1 5 1 . 9 4 2 1 1 1 Special Weapon 5 | . . . . . . . . . . . 1 1 2 . . . . . . . . . . . 1 . . . . . Impact Weapon . | . . . . . . . . . . . . . . . . . . . . . . . . . . . . . . . Slashing Weapon 10 | . 2 . . . . 2 . 1 . . . 1 . 1 . . . . . . . 1 . . . . . 1 . 1 Piercing Weapon . | . . . . . . . . . . . . . . . . . . . . . . . . . . . . . . . Special Melee Weapon . | . . . . . . . . . . . . . . . . . . . . . . . . . . . . . . . Unidentified Prototypes 41 | . . . . . 3 2 3 . . . 1 . 2 4 . 4 . . . 5 . 1 . . 10 . 2 2 1 1 Parts Lost 79 | . 3 . . 4 5 7 3 2 . . 11 1 13 . . 3 . . 1 . . 2 . . 3 . 3 1 1 16 Power 6 | . 1 . . 1 . 1 . . . . . . . . . 1 . . . . . . . . . . . . . 2 Propulsion 16 | . . . . 2 1 2 . . . . 5 . 2 . . 1 . . . . . . . . 1 . . . . 2 Utility 32 | . . . . . 2 2 1 1 . . 3 . 7 . . 1 . . 1 . . 1 . . 1 . 1 1 1 9 Weapon 25 | . 2 . . 1 2 2 2 1 . . 3 1 4 . . . . . . . . 1 . . 1 . 2 . . 3 Highest Loss Streak 9 | . 2 . . 4 2 4 2 2 . . 6 1 7 . . 2 . . 1 . . 1 . . 2 . 3 1 1 9 Average Slot Usage (%) 89 | . 98 100 100 96 97 99 91 92 99 77 98 99 99 93 93 92 88 82 81 64 81 83 84 84 86 86 84 77 76 73 Engine 3 | . 13 14 14 13 9 4 4 7 7 7 7 6 6 . . . . . . . . . . . . . . . . . Reactor 4 | . . . . . . 3 2 . . . . . . 5 6 5 2 . . 3 5 9 10 10 7 7 4 8 8 7 Treads 13 | . 24 14 14 14 17 17 23 23 23 23 22 19 20 13 13 12 11 11 11 11 11 9 10 10 10 10 9 8 8 7 Device 9 | . . . . . 10 8 5 . . . 5 11 9 13 10 9 11 11 13 12 11 12 15 15 8 9 9 13 16 21 Storage 20 | . 27 28 28 28 26 27 15 15 23 23 23 20 22 20 20 20 17 17 17 17 17 15 15 15 20 21 19 19 17 17 Processor 6 | . . . . . 8 9 7 7 7 7 7 12 10 . . . 5 8 7 5 5 8 10 10 10 10 9 4 1 . Hackware 1 | . . . . . . . . . . . . . . . . 5 5 1 . . . 3 . . . . 8 4 4 4 Protection 7 | . . . . . 7 8 8 14 14 15 8 7 9 20 21 16 11 5 6 9 10 6 5 5 11 7 4 3 6 4 Energy Gun 2 | . 6 . . . 16 10 . . . . . . . . . . 4 . . . . 1 . . . . . . . . Energy Cannon 2 | . . 7 14 14 . . . . . . . . . . . . . . . . 2 2 8 10 3 . 3 4 5 3 Ballistic Gun 10 | . 10 14 14 11 . 7 21 18 18 1 21 18 13 12 20 19 11 14 15 . 12 10 1 . 6 14 9 2 1 1 Naked Turns . | . . . . . . . . . . . . . . . . . . . . . . . . . . . . . . . Heaviest Build 245 | 12 41 44 76 77 117 123 150 150 139 137 147 153 154 159 159 154 150 149 155 159 163 187 194 187 217 221 233 240 245 242 Greatest Support 160 | 20 40 20 16 20 43 40 84 84 76 71 71 70 80 110 110 110 160 160 160 160 160 160 155 155 160 160 150 150 140 155 Greatest Overweight (x) 6 | . 2 2 4 4 6 5 2 1 1 1 6 3 2 1 1 1 . . . . 1 2 1 1 1 1 3 3 1 1 Average Overweight (x) 1 | . 1 2 2 3 2 2 1 1 1 1 1 1 1 1 1 1 . . . . . . 1 1 1 1 1 1 1 1 Largest Inventory Capacity 48 | . 16 16 20 20 28 28 48 48 28 28 28 28 28 28 28 28 28 28 28 28 28 28 28 28 36 36 36 36 36 36 Average Capacity 29 | . 15 16 18 20 27 28 31 31 28 28 28 28 28 28 28 28 28 28 28 28 28 28 28 28 34 36 36 36 36 36 Most Carried 36 | . 16 16 20 20 28 28 32 32 28 28 28 28 28 28 28 28 28 28 28 28 28 28 28 28 36 36 36 36 36 36 Average Carried 29 | . 13 15 18 19 26 27 31 31 28 28 27 27 27 27 27 27 27 27 27 27 27 27 27 27 34 35 35 35 35 34 Final Capacity 36 | 6 16 16 20 20 28 28 32 28 28 28 28 28 28 28 28 28 28 28 28 28 28 28 28 28 36 36 36 36 36 36 Final Carried 36 | 6 16 16 20 16 28 28 32 28 28 28 28 28 27 28 28 28 28 28 27 28 28 28 28 28 36 36 36 36 36 30 Class Distribution -------------------- 36% | Hauler-Mutant 27% | Scavenger-Tank 17% | Scavenger-Mutant 6% | Hauler-Tank 5% | Mutant 4% | Hauler-Gunner Dominant Class ---------------- Mutant | -10/Materials Mutant | -10/Mines Mutant | -10/Exiles Hauler-Mutant | -9/Mines Hauler-Mutant | -8/Materials Hauler-Mutant | -8/Storage Hauler-Tank | -7/Factory Hauler-Mutant | -7/Lower Caves Hauler-Mutant | -7/Lower Caves Hauler-Mutant | -7/Data Miner Hauler-Gunner | -6/Proximity Caves Scavenger-Tank | -6/Factory Scavenger-Mutant | -6/Extension Scavenger-Mutant | -6/Cetus Scavenger-Tank | -6/Archives Scavenger-Tank | -6/Hub_04(d) Scavenger-Mutant | -5/Factory Scavenger-Tank | -5/Upper Caves Scavenger-Mutant | -5/Upper Caves Hauler-Mutant | -5/Zhirov Scavenger-Mutant | -4/Proximity Caves Scavenger-Tank | -4/Factory Hauler-Mutant | -4/Upper Caves Hauler-Mutant | -4/Upper Caves Hauler-Mutant | -4/Warlord Scavenger-Tank | -3/Proximity Caves Scavenger-Tank | -3/Research Hauler-Mutant | -3/Quarantine Hauler-Mutant | -2/Research Hauler-Mutant | -1/Access Resources | -11 -10 -10 -10 -9 -8 -8 -7 -7 -7 -7 -6 -6 -6 -6 -6 -6 -5 -5 -5 -5 -4 -4 -4 -4 -4 -3 -3 -3 -2 -1 ----------- Run | Scr Mat Min Exi Min Mat Sto Fac Low Low Dat Pro Fac Ext Cet Arc Hub Fac Upp Upp Zhi Pro Fac Upp Upp War Pro Res Qua Res Acc Matter Collected 20787 | 184 118 68 . 71 440 828 1519 276 405 . 949 564 1206 306 220 1840 510 140 347 66 412 2362 98 377 2229 1345 1342 1015 340 1210 Remotely 3417 | . . . . . . . 129 . . . . . 321 . . 128 . . . . . 1215 . . 1624 . . . . . Salvage Created 44345 | . 495 144 . 62 2128 2239 2417 235 542 . 1476 1944 2386 288 271 2479 1039 183 578 124 740 4869 157 540 4385 1935 2081 3273 2182 5153 Parts 1871 | . 17 7 . 4 87 110 139 12 23 . 54 66 143 9 14 101 46 6 22 5 35 198 7 12 151 88 117 163 83 152 Haulers Intercepted 29 | . 2 . . . 5 6 6 . . . . 1 1 . . 2 . . . . . 3 . . . . 1 1 . 1 Recyclers Shooed 28 | . 5 . . . 2 2 . . . . . 4 1 . . 2 3 . . . . 5 . . . 2 1 . . 1 Parts Field Recycled . | . . . . . . . . . . . . . . . . . . . . . . . . . . . . . . . Retrieved Matter . | . . . . . . . . . . . . . . . . . . . . . . . . . . . . . . . Parts Self-Destructed 406 | . . . . . . . . 9 . . 45 . . . . . . . 28 2 26 . 1 5 191 99 . . . . Prevented 139 | . . . . . . . . . 4 . 12 . . . . . . 6 . . 9 . 6 1 81 20 . . . . Kills | -11 -10 -10 -10 -9 -8 -8 -7 -7 -7 -7 -6 -6 -6 -6 -6 -6 -5 -5 -5 -5 -4 -4 -4 -4 -4 -3 -3 -3 -2 -1 ------- Run | Scr Mat Min Exi Min Mat Sto Fac Low Low Dat Pro Fac Ext Cet Arc Hub Fac Upp Upp Zhi Pro Fac Upp Upp War Pro Res Qua Res Acc Combat Hostiles Destroyed 619 | . 7 3 . 12 28 39 35 3 9 . 23 16 21 3 3 28 16 3 16 . 14 45 2 19 85 28 25 46 29 61 Melee 18 | . 4 1 . . . . . . . . . . . . . . . . . . . . . . . . . 8 . 5 Guns 249 | . 3 1 . 3 27 28 26 3 6 . 17 10 6 . 3 28 11 . 7 . 7 18 . . 12 18 12 3 . . Cannons 71 | . . 1 . . . . . . . . . . . . . . . . . . . 10 1 . . . 4 21 12 22 AOE 184 | . . . . 9 . 9 7 . 1 . 4 4 8 2 . . 5 2 9 . 4 6 . 17 66 9 5 5 3 9 Classes Destroyed 25 | . 5 1 . 2 3 4 1 1 1 . . . 1 . . . . . . . . 1 . . 3 . . . 1 1 Worker 36 | . . . . . 1 . 10 . . . . 3 7 . . 3 1 . . . . 5 . . . . 1 1 . 4 Builder 22 | . . . . . . 3 1 . . . . 2 8 . . 1 . . . . . 2 . . . 1 . 1 . 3 Tunneler 5 | . . . . . . . . . . . . . 3 . . 1 1 . . . . . . . . . . . . . Hauler 29 | . 2 . . . 5 6 6 . . . . 1 1 . . 2 . . . . . 3 . . . . 1 1 . 1 Recycler 39 | . 1 . . . 5 2 2 . . . . 6 3 . . 4 2 . . . . 7 . . . 2 1 1 . 3 Carrier 3 | . . . . . . . . . . . . . . . . . . . . . . . . . . . . . . 3 Mechanic 4 | . . . . . . . . . . . . . . . . . . . . . . 2 . . 1 . . . . 1 Operator 8 | . . . . . 2 1 . . . . . 1 . . 1 1 1 . . . . 1 . . . . . . . . Watcher 31 | . 1 . . . 5 2 4 . . . . 1 2 1 . 1 . . . . . 6 . . . . 1 2 2 3 Swarmer 101 | . 3 . . 1 7 . 3 . . . 1 4 . . . 3 5 1 8 . 4 1 . 7 11 8 5 9 6 14 Saboteur 5 | . . . . . . . . . . . . . . . . . . . . . . . . . 2 . . 1 . 2 Grunt 240 | . 4 2 . . 12 23 21 . 3 . 11 7 8 . . 11 5 1 5 . 4 18 . 10 52 8 5 8 3 19 Brawler 19 | . . . . . . 2 1 . . . 2 . . . . . . . 2 . . . . 1 5 1 1 2 . 2 Duelist 17 | . . . . . 1 1 . . . . 5 1 . . . . . . . . 1 . . . 2 2 . . . 4 Protector 9 | . . . . . . 2 . . . . . . . . . 1 . . . . . . . . 5 . . 1 . . Sentry 69 | . . 1 . . 8 10 5 . . . 1 2 4 . 3 7 2 1 1 . 1 8 . 1 . 5 4 . 2 3 Demolisher 4 | . . . . 2 . . . . . . . . . . . . . . . . . . . . . . . . 2 . Hunter 48 | . . . . . . 1 1 1 . . 1 . 6 . . . 1 . . . 2 5 2 . 3 2 4 2 6 11 Programmer 64 | . . . . . . . 4 1 . . 1 2 1 . . 3 3 . . . 2 13 . . 2 1 5 20 2 4 Behemoth 6 | . . . . . . . . 1 . . 1 . 2 . . . . . . . . . . . . 1 1 . . . Cetus Guard 3 | . . . . . . . . . . . . . . 3 . . . . . . . . . . . . . . . . Lightning 6 | . . . . . . . . . . . . . . . . 3 . . . . . . . . . . . 3 . . Striker 8 | . . . . . . . . . . . . . . . . . . . . . . . . . 2 . . . 5 1 Executioner 5 | . . . . . . . . . . . . . . . . . . . . . . . . . 1 . . . 3 1 Assembled 9 | . . . . 9 . . . . . . . . . . . . . . . . . . . . . . . . . . Thug 6 | . . . . . . . . . 4 . . . . . . . . . . . . . . . 2 . . . . . Butcher 1 | . . . . . . . . . 1 . . . . . . . . . . . . . . . . . . . . . Fireman 1 | . . . . . . . . . . . . . . . . . . . . . . . . . . . . . 1 . Mutant 1 | . . . . . . . . . 1 . . . . . . . . . . . . . . . . . . . . . Best Kill Streak 18 | . 2 2 . 11 5 8 11 1 3 . 5 12 14 4 1 6 6 3 7 . 4 9 2 5 10 5 7 9 8 18 Combat Bots Only 16 | . 2 2 . 11 5 8 5 1 3 . 5 6 6 3 1 5 5 3 7 . 4 6 2 5 10 5 7 7 7 16 Max Kills in Single Turn 7 | . 1 1 . 3 1 3 4 1 1 . 2 3 3 3 1 2 5 2 2 . 2 3 1 4 7 4 2 2 2 3 Gunslinging 1 | . . . . . . . . . . . . . . . . . 1 . 1 . 1 . . . 1 1 . . . . Exploded 6 | . . . . 3 . 2 2 . 1 . 2 2 1 2 . . 5 2 2 . 2 1 . 4 6 4 2 2 2 3 Melee 1 | . 1 1 . . . . . . . . . . . . . . . . . . . . . . . . . 1 . 1 Uniques/NPCs Destroyed 1 | . . . . . . . . . . . . . . 1 . . . . . . . . . . . . . . . . Revision 17 (-6/Cetus) Combat | -11 -10 -10 -10 -9 -8 -8 -7 -7 -7 -7 -6 -6 -6 -6 -6 -6 -5 -5 -5 -5 -4 -4 -4 -4 -4 -3 -3 -3 -2 -1 -------- Run | Scr Mat Min Exi Min Mat Sto Fac Low Low Dat Pro Fac Ext Cet Arc Hub Fac Upp Upp Zhi Pro Fac Upp Upp War Pro Res Qua Res Acc Damage Taken 32336 | . 432 289 . 588 1487 2325 1287 629 334 . 1792 376 2393 210 235 2503 731 84 399 . 497 2490 94 86 2229 790 1506 1340 1686 5524 Core 2046 | . 19 96 . 127 147 326 43 66 . . 103 15 154 . . 22 73 15 26 . 24 119 4 . 122 40 50 50 128 277 Absorbed by Shields 8060 | . . . . . . . . . . . . 26 177 139 . 56 267 31 144 . 186 858 102 91 1577 663 1036 1030 412 1265 Reduced by Siege Mode 656 | . . . . . . . . . . . . . . . 7 4 39 7 11 . 7 122 . 7 86 56 97 66 20 127 Core Remaining (%) 66 | 100 . . . 3 . 14 . . . . 69 . . . . 77 . . . . 86 . . . . 75 . 84 91 . Volleys Fired 1925 | . 25 7 . 17 121 149 84 9 15 . 50 40 100 18 15 94 75 6 17 . 31 169 3 27 189 101 75 225 114 149 Largest 3 | . 2 2 . 2 2 2 3 3 3 . 3 3 3 2 3 3 3 1 3 . 3 3 2 2 3 3 3 3 1 1 Hottest 251 | . 80 80 . 80 126 117 105 84 84 . 84 90 102 70 105 105 150 39 103 . 103 176 176 176 176 114 176 251 120 120 Shots Fired 3301 | . 43 12 . 23 237 273 226 27 38 . 118 89 136 23 45 268 130 6 35 . 59 365 6 32 240 203 160 244 114 149 Gun 2182 | . 43 7 . 6 224 257 214 27 35 . 100 74 41 10 45 268 129 . 27 . 43 246 . . 77 185 98 23 3 . Cannon 753 | . . 5 . 6 13 . 1 . . . . 6 8 . . . . . . . 13 96 6 14 58 1 54 219 107 146 Launcher 317 | . . . . 11 . 16 11 . 3 . 13 8 53 13 . . 1 6 8 . 3 23 . 18 96 17 8 2 4 3 Special 49 | . . . . . . . . . . . 5 1 34 . . . . . . . . . . . 9 . . . . . Kinetic 1681 | . 3 7 . 6 . 98 209 27 35 . 100 74 41 10 45 268 69 . 27 . 43 238 . . 77 185 98 18 3 . Thermal 835 | . 15 5 . 6 237 159 6 . . . . 6 3 . . . 60 . . . . 52 . 3 50 1 3 176 30 23 Explosive 128 | . . . . 11 . 16 1 . . . . . . . . . 1 . 8 . 3 . . 18 49 8 4 2 4 3 Electromagnetic 608 | . 25 . . . . . 10 . 3 . 13 8 58 13 . . . 6 . . 13 75 6 11 55 9 55 48 77 123 Robot Hit Streak 44 | . 6 3 . 7 25 20 21 15 16 . 12 16 17 7 14 15 38 19 44 . 14 29 4 10 34 37 40 34 18 19 Robot Miss Streak 9 | . 2 1 . 1 3 4 4 4 4 . 4 9 3 6 2 4 1 . 2 . 2 3 1 1 2 2 1 4 4 2 Penetration Max 1 | . . . . . . . . . . . . . . . 1 1 1 . 1 . 1 1 . . 1 1 1 . . 1 Secondary Targets 35 | . 1 . . . . 1 1 . 1 . 4 . 1 . . 5 2 . 2 . 2 6 . . 4 3 1 1 . . Max Gunslinging Chain 1 | . 1 . . . . 1 1 . 1 . 1 . 1 . . 1 1 . 1 . 1 1 . . 1 1 1 1 . . Capacitor 437 | . . . . . . . . . . . . . . . . . . . . . . . . . . . . 207 107 123 Shots Hit Robots 2157 | . 43 12 . 11 176 199 111 10 17 . 67 40 91 6 33 137 89 3 27 . 43 263 4 12 108 137 125 202 80 111 Core Hits 1960 | . 18 4 . 26 68 104 169 27 36 . 116 104 123 17 10 235 36 6 31 3 23 128 2 34 313 69 60 73 39 86 Critical Hits 146 | . . 1 . 1 . 1 1 . . . . 1 . . 4 7 15 . 7 . 5 28 . . 14 9 10 14 2 26 Critical Kills 69 | . . 1 . . . . 1 . . . . 1 . . 2 4 6 . 5 . 2 12 . . 5 5 5 4 1 15 Critical Parts Destroyed 65 | . . . . . . 1 . . . . . . . . 1 2 9 . 2 . 3 15 . . 7 3 3 10 . 9 Melee Attacks 106 | . 19 7 . . . 3 . 4 . . . 1 . 4 . . . . . . . . . . . . . 45 1 22 Impact . | . . . . . . . . . . . . . . . . . . . . . . . . . . . . . . . Slashing 106 | . 19 7 . . . 3 . 4 . . . 1 . 4 . . . . . . . . . . . . . 45 1 22 Piercing . | . . . . . . . . . . . . . . . . . . . . . . . . . . . . . . . Sneak Attacks 8 | . 4 2 . . . . . . . . . . . . . . . . . . . . . . . . . 1 . 1 Combat Hostiles 1 | . . 1 . . . . . . . . . . . . . . . . . . . . . . . . . . . . Follow-up Attacks . | . . . . . . . . . . . . . . . . . . . . . . . . . . . . . . . Damage Inflicted 109864 | . 884 368 . 622 3355 4778 5048 849 920 . 2742 2668 4362 994 921 5243 2729 263 1686 23 1651 10701 159 3437 22271 5233 4946 10071 3790 9150 Guns 41193 | . 390 82 . 52 3223 3548 3778 656 672 . 2015 1492 910 78 921 5060 2424 . 673 . 831 5471 . . 2422 3429 2712 302 52 . Cannons 21633 | . . 35 . 106 104 . . . . . . . 124 . . . . . . . 335 2710 159 289 212 . 1210 7182 2929 6238 Explosions 42903 | . 60 . . 464 . 1218 1201 . 248 . 727 1131 3249 916 . 156 286 263 1013 . 485 2474 . 3148 19637 1804 1024 677 809 1913 Melee 3762 | . 429 251 . . . . . 193 . . . . . . . . . . . . . . . . . . . 1910 . 979 Ramming 373 | . 5 . . . 28 12 69 . . . . 45 79 . . 27 19 . . 23 . 46 . . . . . . . 20 Kinetic 34066 | . 13 82 . 52 . 1290 3704 656 672 . 2015 1492 910 78 921 5060 1527 . 673 . 831 5286 . . 2422 3429 2712 189 52 . Thermal 21627 | . 173 35 . 106 3327 2258 448 . . . 21 99 243 380 . . 897 . . . 62 2173 . . 3645 162 . 5924 607 1067 Explosive 23636 | . . . . 464 . 1218 157 . . . . . . . . . 286 . 1013 . 423 . . 3148 12148 1483 670 512 809 1305 Electromagnetic 26400 | . 264 . . . . . 670 . 248 . 706 1032 3130 536 . 156 . 263 . . 335 3196 159 289 4056 159 1564 1536 2322 5779 Impact . | . . . . . . . . . . . . . . . . . . . . . . . . . . . . . . . Slashing 3762 | . 429 251 . . . . . 193 . . . . . . . . . . . . . . . . . . . 1910 . 979 Piercing . | . . . . . . . . . . . . . . . . . . . . . . . . . . . . . . . Highest Corruption 11 | . . . . . . . 5 5 5 5 7 1 2 2 2 11 . . 5 5 6 1 1 1 1 . 4 4 2 . Average Corruption 2 | . . . . . . . 3 5 5 5 5 1 1 2 1 4 . . 5 5 5 1 1 1 1 . 2 1 1 . Corruption Purged 19 | . . . . . . . . . . . . . . . 2 . . . . . . . . . 1 . 4 9 3 . Effects 288 | . . . . . . . 12 35 27 1 62 4 22 4 6 25 . . 10 8 29 15 5 4 3 . 3 9 4 . Message Errors 72 | . . . . . . . 2 9 4 . 18 . 6 1 2 4 . . 4 1 9 6 2 2 . . . 2 . . Matter Fused 43 | . . . . . . . . 9 8 1 15 . . . . 2 . . 3 . 4 . . . . . 1 . . . Heat Flow Errors 43 | . . . . . . . 3 6 6 . 8 . 5 1 1 1 . . 2 1 5 . . . . . 1 1 2 . Energy Discharges 34 | . . . . . . . . 3 2 . 4 3 2 1 1 3 . . 1 . 5 4 2 2 1 . . . . . Parts Rejected 3 | . . . . . . . 1 . . . . . . . . 1 . . . . 1 . . . . . . . . . Data Loss (minor) 20 | . . . . . . . 1 2 1 . 3 . 2 . 1 2 . . . 2 . 2 1 . 1 . 1 1 . . Data Loss (major) 13 | . . . . . . . . 1 2 . 3 . . . . 2 . . . 4 1 . . . . . . . . . Misfires 10 | . . . . . . . . 3 . . 5 . . . . 1 . . . . 1 . . . . . . . . . Misdirections 2 | . . . . . . . . . . . . . . . . 2 . . . . . . . . . . . . . . Targeting Errors 36 | . . . . . . . 3 1 3 . 5 . 5 1 1 6 . . . . 3 2 . . 1 . . 3 2 . Weapon Failures 12 | . . . . . . . 2 1 1 . 1 1 2 . . 1 . . . . . 1 . . . . . 2 . . Overload Shots 3 | . . . . . . . . . . . . . . . . . . . . . . . . . 2 1 . . . . Overflow Damage 2800 | . 71 44 . . . . 64 87 . . 8 17 76 29 . 15 4 23 1 . 4 263 . 160 507 80 65 753 154 375 Projectiles 1119 | . . . . . . . . . . . . . . . . . . . . . . 102 . . . . . 676 91 250 Explosions 1378 | . 14 . . . . . 43 . . . 8 17 76 29 . 15 4 23 1 . 4 161 . 160 507 80 65 18 63 90 Melee 303 | . 57 44 . . . . 21 87 . . . . . . . . . . . . . . . . . . . 59 . 35 Knockbacks 3 | . . . . . . . . . . . . . . . . . 1 . . . . 2 . . . . . . . . Impact 2 | . . . . . . . . . . . . . . . . . 1 . . . . 1 . . . . . . . . Kinetic 1 | . . . . . . . . . . . . . . . . . . . . . . 1 . . . . . . . . Secondary . | . . . . . . . . . . . . . . . . . . . . . . . . . . . . . . . Self-Inflicted Damage 604 | . 33 . . . . 40 . . . . 80 . 1 . . 86 . . . . 58 74 . . 118 17 . . . 97 Shots 18 | . 1 . . . . 2 . . . . 5 . 1 . . 1 . . . . 1 2 . . 2 1 . . . 2 Rammed 35 | . 2 1 . . 6 1 5 . . . . 3 5 . . 1 1 . . 6 . 4 . . . . . . . . Targets Rammed 37 | . 2 1 . . 6 1 5 . . . . 4 5 . . 2 1 . . 6 . 4 . . . . . . . . Kicked . | . . . . . . . . . . . . . . . . . . . . . . . . . . . . . . . Crushed 2 | . . . . . . . . . . . . 1 . . . 1 . . . . . . . . . . . . . . Highest Temperature 353 | . 207 39 . 105 353 243 258 236 270 . 275 . 248 166 60 185 247 . 205 76 270 192 68 178 66 26 237 297 294 224 Average Temperature 60 | . 75 17 . 46 45 40 38 71 114 . 98 . 44 100 39 58 80 . 101 53 99 28 35 83 32 10 69 81 61 63 Received Heat Transfer 5221 | . 192 150 . . 594 927 438 84 186 . 366 40 460 21 9 459 156 18 36 . 47 390 . 12 86 50 203 12 22 263 Siege Activations 79 | . . . . . . . . . . . . . . . 4 2 5 1 2 . 4 13 . 1 8 12 6 11 4 6 Total Turns 1670 | . . . . . . . . . . . . . . . 56 25 76 18 28 . 44 233 . 12 496 223 133 198 53 75 Longest Duration 171 | . . . . . . . . . . . . . . . 23 16 29 18 27 . 17 45 . 12 171 64 34 37 22 25 Robots Corrupted 101 | . . . . . . . 2 . 2 . 2 3 9 1 . . . 1 . . 3 12 1 2 7 1 4 9 14 28 Combat Hostiles 94 | . . . . . . . 2 . 2 . 2 2 7 1 . . . 1 . . 3 11 1 2 7 1 4 9 14 25 Parts Fried 211 | . . . . . . . 5 . 3 . 2 14 22 6 . 2 . 1 . . 5 26 2 . 11 . 14 23 24 51 Impact Corruptions 1 | . . . . . . . 1 . . . . . . . . . . . . . . . . . . . . . . . Robots Melted 3 | . . . . . 1 2 . . . . . . . . . . . . . . . . . . . . . . . . Combat Hostiles 3 | . . . . . 1 2 . . . . . . . . . . . . . . . . . . . . . . . . Parts Melted 42 | . . . . . 12 11 1 . . . . . . 1 . . 2 . . . . 4 . . 4 . . 1 . 6 Heat Transferred 24878 | . 350 74 . 222 6586 4551 548 . . . 50 250 375 250 . . 1036 . . . 50 2057 . . 2578 240 . 4410 518 733 Parts Sabotaged 2 | . . . . . . . . . . . 2 . . . . . . . . . . . . . . . . . . . Parts Stolen . | . . . . . . . . . . . . . . . . . . . . . . . . . . . . . . . Parts Stripped . | . . . . . . . . . . . . . . . . . . . . . . . . . . . . . . . Power Chain Reactions 43 | . 2 . . . . . 4 . . . 1 2 11 2 . . . . . . 1 1 . . 15 . . 1 . 3 Missiles Intercepted 2 | . . . . . . . . . . . . . . . . . . . . . . . . . . . . . 2 . Alert | -11 -10 -10 -10 -9 -8 -8 -7 -7 -7 -7 -6 -6 -6 -6 -6 -6 -5 -5 -5 -5 -4 -4 -4 -4 -4 -3 -3 -3 -2 -1 ------- Run | Scr Mat Min Exi Min Mat Sto Fac Low Low Dat Pro Fac Ext Cet Arc Hub Fac Upp Upp Zhi Pro Fac Upp Upp War Pro Res Qua Res Acc Peak Influence 2642 | . 98 75 . 78 468 850 832 . . . . 436 595 720 399 877 613 . . . . 701 . . . . 509 876 1223 2642 Initial 696 | . . 25 . . . 55 183 . . . . 11 114 306 232 69 392 . . . . 17 . . . . 216 42 492 696 Average 385 | . 50 34 . 59 159 420 293 . . . . 254 169 525 292 477 378 . . . . 288 . . . . 274 493 833 1609 Maximum Alert Level 5 | . . . . . 2 3 3 . . . . 2 2 3 1 3 2 . . . . 3 . . . . 2 3 4 5 Low Security (%) 40 | . 100 100 . 100 71 13 47 . . . . 22 72 . 42 28 . . . . . 41 . . . . 31 19 . . Level 1 24 | . . . . . 17 28 31 . . . . 68 14 11 57 18 79 . . . . 30 . . . . 48 11 . . Level 2 20 | . . . . . 10 48 15 . . . . 8 13 77 . 10 20 . . . . 25 . . . . 20 41 35 . Level 3 9 | . . . . . . 8 5 . . . . . . 11 . 43 . . . . . 2 . . . . . 27 41 15 Level 4 2 | . . . . . . . . . . . . . . . . . . . . . . . . . . . . . 22 38 Level 5 1 | . . . . . . . . . . . . . . . . . . . . . . . . . . . . . . 23 High Security 1 | . . . . . . . . . . . . . . . . . . . . . . . . . . . . . . 22 Max Security . | . . . . . . . . . . . . . . . . . . . . . . . . . . . . . . . Squads Dispatched 121 | . 1 . . . 3 7 12 . . . 1 10 6 . . 10 5 . 1 . . 17 . . . . 8 11 2 27 Investigation 17 | . 1 . . . 2 2 2 . . . . 1 2 . . . 2 . . . . 1 . . . . . 2 1 1 Extermination 24 | . . . . . . . 3 . . . . 3 . . . 2 2 . . . . 4 . . . . 3 6 . 1 Reinforcement 27 | . . . . . 1 2 2 . . . . 5 4 . . 2 1 . . . . 4 . . . . 2 1 1 2 Assault 38 | . . . . . . 2 2 . . . 1 . . . . 3 . . 1 . . 5 . . . . . 2 . 22 Garrison 15 | . . . . . . 1 3 . . . . 1 . . . 3 . . . . . 3 . . . . 3 . . 1 Intercept . | . . . . . . . . . . . . . . . . . . . . . . . . . . . . . . . Construction Impeded 9 | . . . . . . . 1 . . . . 1 3 . . . . . . . . 1 . . . . 2 . . 1 Haulers Reinforced 4 | . . . . . . . 1 . . . . 1 . . . . . . . . . 2 . . . . . . . . Stealth | -11 -10 -10 -10 -9 -8 -8 -7 -7 -7 -7 -6 -6 -6 -6 -6 -6 -5 -5 -5 -5 -4 -4 -4 -4 -4 -3 -3 -3 -2 -1 --------- Run | Scr Mat Min Exi Min Mat Sto Fac Low Low Dat Pro Fac Ext Cet Arc Hub Fac Upp Upp Zhi Pro Fac Upp Upp War Pro Res Qua Res Acc Distress Signals 39 | . . . . . 1 3 3 . . . . . 7 2 . 1 . . . . . 2 . . . 1 5 1 10 3 Communications Jammed . | . . . . . . . . . . . . . . . . . . . . . . . . . . . . . . . Distress Signals . | . . . . . . . . . . . . . . . . . . . . . . . . . . . . . . . Times Spotted 1016 | . 19 4 . 15 46 58 46 3 9 . 27 31 51 17 6 40 18 2 20 . 15 75 2 11 211 29 29 64 47 121 Peak Tracking Total 19 | . 3 2 . 7 6 10 4 1 4 . 7 8 6 5 1 5 5 3 8 . 4 6 2 5 19 5 8 6 6 16 Tactical Retreats 69 | . 3 . . 1 3 11 4 . . . 1 2 6 . . 4 2 . 2 . 2 3 . . 4 3 1 3 4 10 Traps | -11 -10 -10 -10 -9 -8 -8 -7 -7 -7 -7 -6 -6 -6 -6 -6 -6 -5 -5 -5 -5 -4 -4 -4 -4 -4 -3 -3 -3 -2 -1 ------- Run | Scr Mat Min Exi Min Mat Sto Fac Low Low Dat Pro Fac Ext Cet Arc Hub Fac Upp Upp Zhi Pro Fac Upp Upp War Pro Res Qua Res Acc Traps Triggered 19 | . . . . . . 3 2 . . . . 2 3 . . . . . . . . 7 . . . . 1 . . 1 Indirectly 2 | . . . . . . . . . . . . . . . . . . . . . . 2 . . . . . . . . Trap Hack Attempts . | . . . . . . . . . . . . . . . . . . . . . . . . . . . . . . . Triggered . | . . . . . . . . . . . . . . . . . . . . . . . . . . . . . . . Disarmed 1 | . . . . . . . . . . . . . . . . . . . . . . . . . . . . 1 . . Reprogrammed . | . . . . . . . . . . . . . . . . . . . . . . . . . . . . . . . Reused . | . . . . . . . . . . . . . . . . . . . . . . . . . . . . . . . Traps Extracted . | . . . . . . . . . . . . . . . . . . . . . . . . . . . . . . . Installed . | . . . . . . . . . . . . . . . . . . . . . . . . . . . . . . . Triggered 11 | . . . . . . . . . . . 1 . 1 . . . . . . . . . . . 9 . . . . . Machines | -11 -10 -10 -10 -9 -8 -8 -7 -7 -7 -7 -6 -6 -6 -6 -6 -6 -5 -5 -5 -5 -4 -4 -4 -4 -4 -3 -3 -3 -2 -1 ---------- Run | Scr Mat Min Exi Min Mat Sto Fac Low Low Dat Pro Fac Ext Cet Arc Hub Fac Upp Upp Zhi Pro Fac Upp Upp War Pro Res Qua Res Acc Machines Disabled 74 | . . 2 . . 2 4 4 1 . . . . 4 3 4 15 . . . . . 8 . . 2 7 3 8 . 7 Max in Single Turn 6 | . . 1 . . 1 1 2 1 . . . . 2 1 2 6 . . . . . 3 . . 1 2 1 1 . 1 Garrison Access 8 | . . . . . 1 1 . . . . . . . . . . 1 . . . . 1 . . . . . 1 1 2 Network Hub 1 | . . . . . . . . . . . . . . . . 1 . . . . . . . . . . . . . . Machines Sabotaged . | . . . . . . . . . . . . . . . . . . . . . . . . . . . . . . . Garrisons Compromised . | . . . . . . . . . . . . . . . . . . . . . . . . . . . . . . . Overloaded Fab Kills . | . . . . . . . . . . . . . . . . . . . . . . . . . . . . . . . Fab Network Shutdowns . | . . . . . . . . . . . . . . . . . . . . . . . . . . . . . . . Hacking | -11 -10 -10 -10 -9 -8 -8 -7 -7 -7 -7 -6 -6 -6 -6 -6 -6 -5 -5 -5 -5 -4 -4 -4 -4 -4 -3 -3 -3 -2 -1 --------- Run | Scr Mat Min Exi Min Mat Sto Fac Low Low Dat Pro Fac Ext Cet Arc Hub Fac Upp Upp Zhi Pro Fac Upp Upp War Pro Res Qua Res Acc Machines Accessed 121 | . 8 . 1 . 13 15 3 1 . 4 . 5 8 3 . 2 8 1 . 5 . 12 . . 5 3 7 13 1 3 Terminals 73 | . 7 . . . 8 10 3 . . . . 2 8 3 . 2 3 . . . . 7 . . . 1 6 10 1 2 Fabricators 4 | . . . . . . . . . . . . . . . . . 1 . . . . 2 . . . 1 . . . . Repair Stations 10 | . . . . . 2 2 . . . . . 2 . . . . 1 . . . . 2 . . . . . 1 . . Recycling Units 7 | . 1 . . . 2 2 . . . . . . . . . . 1 . . . . . . . . 1 . . . . Scanalyzers 4 | . . . . . . . . . . . . 1 . . . . 1 . . . . . . . . . 1 1 . . Garrison Access 6 | . . . . . 1 1 . . . . . . . . . . 1 . . . . 1 . . . . . 1 . 1 Total Hacks 485 | . 31 . 1 . 61 39 10 1 . 29 . 11 22 5 . 5 47 1 . 18 . 69 . . 14 6 60 39 7 9 Successful 294 | . 16 . 1 . 43 24 1 1 . 29 . 4 10 3 . 2 27 1 . 18 . 41 . . 14 4 28 24 1 2 Failed 190 | . 15 . . . 17 15 9 . . . . 7 12 2 . 3 20 . . . . 28 . . . 2 32 15 6 7 Catastrophic 26 | . . . . . 2 3 3 . . . . 1 2 . . . 2 . . . . 5 . . . 1 4 2 . 1 Database Lockouts 1 | . . . . . 1 . . . . . . . . . . . . . . . . . . . . . . . . . Manual 181 | . 19 . . . 29 20 4 . . . . 4 10 . . 5 24 . . . . 24 . . 1 2 17 13 2 7 Terminals 295 | . 29 . . . 43 30 10 . . . . 4 22 5 . 5 27 . . . . 33 . . . 1 48 25 7 6 Fabricators 18 | . . . . . . . . . . . . . . . . . 4 . . . . 11 . . . 3 . . . . Repair Stations 63 | . . . . . 15 6 . . . . . 5 . . . . 4 . . . . 24 . . . . . 9 . . Recycling Units 12 | . 2 . . . 2 2 . . . . . . . . . . 4 . . . . . . . . 2 . . . . Scanalyzers 21 | . . . . . . . . . . . . 2 . . . . 6 . . . . . . . . . 12 1 . . Garrison Access 12 | . . . . . 1 1 . . . . . . . . . . 2 . . . . 1 . . . . . 4 . 3 Terminal Hacks 172 | . 11 . 1 . 20 11 1 1 . 29 . . 9 3 . . 10 1 . 18 . 11 . . 14 1 16 12 1 2 Record 28 | . . . 1 . . . . 1 . 11 . . . 2 . . . . . 6 . . . . 3 . . 4 . . Part Schematic 16 | . 2 . . . . . . . . 9 . . . . . . . . . 4 . . . . . . 1 . . . Robot Schematic 7 | . . . . . 1 . . . . 6 . . . . . . . . . . . . . . . . . . . . Robot Analysis 9 | . 2 . . . . . . . . . . . . . . . 2 . . 4 . . . . . . . 1 . . Prototype ID Bank 32 | . 4 . . . 5 1 . . . 3 . . 3 . . . . . . 4 . . . . 10 . 2 . . . Open Door 9 | . . . . . . 4 . . . . . . . 1 . . . 1 . . . . . . 1 1 . 1 . . Branch Access Points 6 | . . . . . 1 . 1 . . . . . . . . . 1 . . . . 1 . . . . 1 . . 1 Emergency Access Points 3 | . 1 . . . 1 . . . . . . . . . . . . . . . . 1 . . . . . . . . Machine Index 1 | . . . . . . . . . . . . . . . . . . . . . . . . . . . 1 . . . Terminal Index 2 | . . . . . . . . . . . . . . . . . 1 . . . . . . . . . . . 1 . Fabricator Index 1 | . . . . . . . . . . . . . . . . . . . . . . 1 . . . . . . . . Repair Station Index 1 | . . . . . . . . . . . . . . . . . 1 . . . . . . . . . . . . . Alert Level 15 | . . . . . 4 1 . . . . . . 3 . . . 2 . . . . 2 . . . . 2 1 . . Unreport Threat 22 | . . . . . 4 3 . . . . . . 3 . . . 2 . . . . 3 . . . . 4 2 . 1 Locate Traps 5 | . 1 . . . 1 1 . . . . . . . . . . . . . . . . . . . . . 2 . . Disarm Traps 1 | . . . . . . . . . . . . . . . . . . . . . . . . . . . . 1 . . Transport Status 1 | . . . . . . . . . . . . . . . . . . . . . . . . . . . 1 . . . Recall Extermination 1 | . . . . . . . . . . . . . . . . . . . . . . 1 . . . . . . . . Hauler Manifests 3 | . . . . . 2 . . . . . . . . . . . . . . . . . . . . . 1 . . . Zone Layout 9 | . 1 . . . 1 1 . . . . . . . . . . 1 . . . . 2 . . . . 3 . . . Fabricator Hacks 7 | . . . . . . . . . . . . . . . . . 1 . . . . 5 . . . 1 . . . . Load Schematic 4 | . . . . . . . . . . . . . . . . . 1 . . . . 3 . . . . . . . . Build 3 | . . . . . . . . . . . . . . . . . . . . . . 2 . . . 1 . . . . Repair Station Hacks 46 | . . . . . 12 5 . . . . . 3 . . . . 2 . . . . 18 . . . . . 6 . . Scan Component 24 | . . . . . 6 3 . . . . . 2 . . . . 1 . . . . 9 . . . . . 3 . . Repair 22 | . . . . . 6 2 . . . . . 1 . . . . 1 . . . . 9 . . . . . 3 . . Recycling Unit Hacks 2 | . . . . . . . . . . . . . . . . . 1 . . . . . . . . 1 . . . . Report Inventory 1 | . . . . . . . . . . . . . . . . . 1 . . . . . . . . . . . . . Retrieve Components 1 | . . . . . . . . . . . . . . . . . . . . . . . . . . 1 . . . . Scanalyzer 10 | . . . . . . . . . . . . . . . . . 5 . . . . . . . . . 4 1 . . Insert Component 6 | . . . . . . . . . . . . . . . . . 2 . . . . . . . . . 3 1 . . Analyze 4 | . . . . . . . . . . . . . . . . . 3 . . . . . . . . . 1 . . . Garrison Access Hacks 3 | . . . . . 1 1 . . . . . . . . . . . . . . . 1 . . . . . . . . Seal Access 3 | . . . . . 1 1 . . . . . . . . . . . . . . . 1 . . . . . . . . Unauthorized Hacks 54 | . 5 . . . 10 7 . . . . . 1 1 . . 2 8 . . . . 6 . . . 1 8 5 . . Terminals 43 | . 4 . . . 8 5 . . . . . 1 1 . . 2 4 . . . . 6 . . . . 8 4 . . Track 26 | . 4 . . . 6 3 . . . . . 1 1 . . 1 1 . . . . 4 . . . . 3 2 . . Assimilate 1 | . . . . . . . . . . . . . . . . . . . . . . . . . . . 1 . . . Botnet 11 | . . . . . 1 2 . . . . . . . . . 1 2 . . . . 1 . . . . 2 2 . . Disrupt 1 | . . . . . . . . . . . . . . . . . . . . . . . . . . . 1 . . . Operators 4 | . . . . . 1 . . . . . . . . . . . 1 . . . . 1 . . . . 1 . . . Fabricators 1 | . . . . . . . . . . . . . . . . . . . . . . . . . . 1 . . . . Download 1 | . . . . . . . . . . . . . . . . . . . . . . . . . . 1 . . . . Repair Stations . | . . . . . . . . . . . . . . . . . . . . . . . . . . . . . . . Recycling Units 8 | . 1 . . . 2 2 . . . . . . . . . . 3 . . . . . . . . . . . . . Reject 1 | . . . . . . . . . . . . . . . . . 1 . . . . . . . . . . . . . Recyclers 1 | . . . . . . . . . . . . . . . . . 1 . . . . . . . . . . . . . Mask 1 | . . . . . . . . . . . . . . . . . 1 . . . . . . . . . . . . . Tunnel 5 | . 1 . . . 2 2 . . . . . . . . . . . . . . . . . . . . . . . . Scanalyzers . | . . . . . . . . . . . . . . . . . . . . . . . . . . . . . . . Garrison Access 2 | . . . . . . . . . . . . . . . . . 1 . . . . . . . . . . 1 . . Jam 2 | . . . . . . . . . . . . . . . . . 1 . . . . . . . . . . 1 . . Data Cores Recovered 3 | . . . . . 1 . . . . . . 1 . . . . 1 . . . . . . . . . . . . . Used 1 | . . . . . 1 . . . . . . . . . . . . . . . . . . . . . . . . . Hacking Detections 84 | . 7 . . . 10 9 3 . . . . 5 8 3 . 2 7 . . . . 11 . . . 1 5 9 1 3 Full Trace Events 6 | . . . . . . . 1 . . . . 1 1 . . . 1 . . . . . . . . . . 1 1 . Feedback Events 2 | . . . . . . . . . . . . 1 . . . . . . . . . . . . . . . . 1 . Corruption 2 | . . . . . . . . . . . . 1 . . . . . . . . . . . . . . . . 1 . Feedback Blocked . | . . . . . . . . . . . . . . . . . . . . . . . . . . . . . . . Robot Schematics Acquired 7 | . . . . . 1 . . . . 6 . . . . . . . . . . . . . . . . . . . . Robots Built . | . . . . . . . . . . . . . . . . . . . . . . . . . . . . . . . Matter . | . . . . . . . . . . . . . . . . . . . . . . . . . . . . . . . Time . | . . . . . . . . . . . . . . . . . . . . . . . . . . . . . . . Total Robot Build Rating . | . . . . . . . . . . . . . . . . . . . . . . . . . . . . . . . Part Schematics Acquired 19 | . 2 . . . . . . . . 9 . . . . . . 1 . . 4 . . . . . 1 2 . . . Parts Built 2 | . . . . . . . . . . . . . . . . . . . . . . 2 . . . . . . . . Matter 603 | . . . . . . . . . . . . . . . . . . . . . . 603 . . . . . . . . Time 160 | . . . . . . . . . . . . . . . . . . . . . . 160 . . . . . . . . Total Part Build Rating 11 | . . . . . . . . . . . . . . . . . . . . . . 11 . . . . . . . . Parts Repaired 22 | . . . . . 6 2 . . . . . 1 . . . . 1 . . . . 9 . . . . . 3 . . Time 1293 | . . . . . 236 70 . . . . . 70 . . . . 54 . . . . 643 . . . . . 220 . . Parts Recycled . | . . . . . . . . . . . . . . . . . . . . . . . . . . . . . . . Recycled Matter . | . . . . . . . . . . . . . . . . . . . . . . . . . . . . . . . Retrieved Matter . | . . . . . . . . . . . . . . . . . . . . . . . . . . . . . . . Retrieved Components 2 | . . . . . . . . . . . . . . . . . . . . . . . . . . 2 . . . . Parts Scanalyzed 2 | . . . . . . . . . . . . . . . . . 1 . . . . . . . . . 1 . . . Part Schematics Acquired 2 | . . . . . . . . . . . . . . . . . 1 . . . . . . . . . 1 . . . Parts Damaged . | . . . . . . . . . . . . . . . . . . . . . . . . . . . . . . . Bothacking | -11 -10 -10 -10 -9 -8 -8 -7 -7 -7 -7 -6 -6 -6 -6 -6 -6 -5 -5 -5 -5 -4 -4 -4 -4 -4 -3 -3 -3 -2 -1 ------------ Run | Scr Mat Min Exi Min Mat Sto Fac Low Low Dat Pro Fac Ext Cet Arc Hub Fac Upp Upp Zhi Pro Fac Upp Upp War Pro Res Qua Res Acc Used RIF Installer . | . . . . . . . . . . . . . . . . . . . . . . . . . . . . . . . Robots Hacked . | . . . . . . . . . . . . . . . . . . . . . . . . . . . . . . . Non-combat . | . . . . . . . . . . . . . . . . . . . . . . . . . . . . . . . Combat . | . . . . . . . . . . . . . . . . . . . . . . . . . . . . . . . Robot Hacks Applied . | . . . . . . . . . . . . . . . . . . . . . . . . . . . . . . . Relay Couplers Released 13 | . . . . . . . 3 . . . . . . . . 3 . . . . . . . . . . . . 2 5 Machine Destruction 4 | . . . . . . . . . . . . . . . . . . . . . . . . . . . . . 2 2 Programmers 9 | . . . . . . . 3 . . . . . . . . 3 . . . . . . . . . . . . . 3 Robots Rewired 40 | . . . . . . . . . . . 2 . 21 . . . . . 2 . . . . . 4 11 . . . . Allies Hacked . | . . . . . . . . . . . . . . . . . . . . . . . . . . . . . . . Hacks Repelled . | . . . . . . . . . . . . . . . . . . . . . . . . . . . . . . . Allies | -11 -10 -10 -10 -9 -8 -8 -7 -7 -7 -7 -6 -6 -6 -6 -6 -6 -5 -5 -5 -5 -4 -4 -4 -4 -4 -3 -3 -3 -2 -1 -------- Run | Scr Mat Min Exi Min Mat Sto Fac Low Low Dat Pro Fac Ext Cet Arc Hub Fac Upp Upp Zhi Pro Fac Upp Upp War Pro Res Qua Res Acc Total Allies 53 | . . 3 . . . 2 . . . . 3 . 27 . . . . . 2 . . . . . 4 11 1 . . . Largest Group 14 | . . 3 2 2 . 2 . . . . 1 . 14 13 2 . . . 2 2 2 . . . 4 11 9 . . . Highest-Rated Group 523 | . . 40 24 24 . 62 . . . . 94 . 523 492 187 . . . 78 78 78 . . . 197 426 396 . . . Highest-Rated Ally 156 | . . 16 16 16 . 31 . . . . 94 . 156 156 156 . . . 49 49 49 . . . 56 64 64 . . . Total Orders 34 | . . . . . . . . . . . . . . 5 . . . . . . . . . . 6 20 3 . . . STAY 20 | . . . . . . . . . . . . . . 3 . . . . . . . . . . 3 12 2 . . . FOLLOW 14 | . . . . . . . . . . . . . . 2 . . . . . . . . . . 3 8 1 . . . Ally Attacks 461 | . . 14 . 8 . 11 . . . . 24 . 141 117 2 . . . 16 . 4 . . . 17 70 37 . . . Total Damage 11208 | . . 161 . 57 . 188 . . . . 755 . 3485 2143 44 . . . 266 . 110 . . . 334 1908 1757 . . . Kills 70 | . . 1 . 2 . . . . . . 2 . 22 17 1 . . . 2 . . . . . 3 12 8 . . . Allies Corrupted 1 | . . . . . . . . . . . . . 1 . . . . . . . . . . . . . . . . . Allies Melted . | . . . . . . . . . . . . . . . . . . . . . . . . . . . . . . . Intel | -11 -10 -10 -10 -9 -8 -8 -7 -7 -7 -7 -6 -6 -6 -6 -6 -6 -5 -5 -5 -5 -4 -4 -4 -4 -4 -3 -3 -3 -2 -1 ------- Run | Scr Mat Min Exi Min Mat Sto Fac Low Low Dat Pro Fac Ext Cet Arc Hub Fac Upp Upp Zhi Pro Fac Upp Upp War Pro Res Qua Res Acc Robot Analysis Total 9 | . 2 . . . . . . . . . . . . . . . 2 . . 4 . . . . . . . 1 . . Derelict Logs Recovered 13 | . . 2 . . . . . . 2 . 1 . . . . . . 2 1 . 2 . 3 . . . . . . . Drone Launches . | . . . . . . . . . . . . . . . . . . . . . . . . . . . . . . . Drone Recoveries . | . . . . . . . . . . . . . . . . . . . . . . . . . . . . . . . Exploration | -11 -10 -10 -10 -9 -8 -8 -7 -7 -7 -7 -6 -6 -6 -6 -6 -6 -5 -5 -5 -5 -4 -4 -4 -4 -4 -3 -3 -3 -2 -1 ------------- Run | Scr Mat Min Exi Min Mat Sto Fac Low Low Dat Pro Fac Ext Cet Arc Hub Fac Upp Upp Zhi Pro Fac Upp Upp War Pro Res Qua Res Acc Turns Passed 49392 | . 1396 1159 471 518 3069 2437 2033 1236 795 174 2258 1370 2406 627 700 1812 1500 1476 754 495 1205 3368 1172 1662 3811 4454 1308 3066 988 1672 Spaces Moved 20761 | 1 736 728 356 231 1074 784 835 649 403 94 1046 496 988 272 89 602 728 858 421 286 613 1214 639 873 1574 1443 479 1155 406 688 Core . | . . . . . . . . . . . . . . . . . . . . . . . . . . . . . . . Treads 19438 | . 534 270 . 36 963 784 835 649 403 94 1046 496 988 272 89 602 728 858 421 286 613 1214 639 873 1574 1443 479 1155 406 688 Legs 1 | 1 . . . . . . . . . . . . . . . . . . . . . . . . . . . . . . Wheels 1322 | . 202 458 356 195 111 . . . . . . . . . . . . . . . . . . . . . . . . . Hover . | . . . . . . . . . . . . . . . . . . . . . . . . . . . . . . . Flight . | . . . . . . . . . . . . . . . . . . . . . . . . . . . . . . . Fastest Speed 100 | 120 100 120 120 140 140 200 180 180 180 180 180 183 180 180 180 180 160 160 160 160 160 160 180 180 180 180 180 180 185 172 Average Speed 178 | 120 162 149 129 152 194 209 188 180 180 180 188 198 183 180 180 180 160 160 160 160 172 177 180 180 180 180 180 185 185 184 Slowest Speed 290 | 120 180 200 140 220 200 260 200 180 180 180 290 225 200 180 180 180 160 160 160 160 180 200 180 180 180 180 220 230 185 185 Overloaded Moves . | . . . . . . . . . . . . . . . . . . . . . . . . . . . . . . . Propulsion Burnouts . | . . . . . . . . . . . . . . . . . . . . . . . . . . . . . . . Robots Hopped . | . . . . . . . . . . . . . . . . . . . . . . . . . . . . . . . Cave-ins Triggered . | . . . . . . . . . . . . . . . . . . . . . . . . . . . . . . . Teleports 2 | . . . . . . . . . . . . . . . . . . . . . . . . . . . . 1 . 1 Exploration Rate (%) 64 | 2 97 99 56 38 84 94 27 72 63 69 96 15 85 79 78 49 16 98 65 63 84 34 86 90 96 93 16 94 21 29 Regions Visited 30 Branch Regions 21 Pre-discovered Areas 16 | . 1 2 1 . 2 2 . . . 1 . . . . . . . 1 1 3 . . 2 . . . . . . . Known Exits Taken 9 | . . . . . 1 . 1 . . . . 1 1 . . 1 1 . . . . 1 . . . 1 1 . . . Unknown Exits Taken 21 | 1 1 1 1 1 . 1 . 1 1 1 1 . . 1 1 . . 1 1 1 1 . 1 1 1 . . 1 1 . Scrap Searched 18 | . . 1 . 1 . . . . 4 . 2 . . . . . . 5 1 . 1 . . 2 . 1 . . . . Spaces Dug 153 | . . . . . . 1 1 . . . 7 7 . . . 17 9 . 14 . . 10 . 2 41 5 3 13 9 14 Terrain Destroyed 1586 | . 6 . . 13 . 96 47 . . . 7 10 10 23 14 208 37 . 104 . 44 91 . 199 269 177 29 69 65 68 Melee 16 | . . . . . . 1 . . . . . 1 . . . . . . . . . . . . . . . 6 1 7 Projectile 375 | . . . . . . 3 1 . . . . 6 1 1 14 46 33 . 8 . 8 41 . 3 53 65 25 32 19 16 AOE 1195 | . 6 . . 13 . 92 46 . . . 7 3 9 22 . 162 4 . 96 . 36 50 . 196 216 112 4 31 45 45 Terrain Rammed 1 | . . . . . . . . . . . . . . . . . . . . . . . . . . . . . . 1 Walls Destroyed . | . . . . . . . . . . . . . . . . . . . . . . . . . . . . . . . Machines Disabled . | . . . . . . . . . . . . . . . . . . . . . . . . . . . . . . . Actions | -11 -10 -10 -10 -9 -8 -8 -7 -7 -7 -7 -6 -6 -6 -6 -6 -6 -5 -5 -5 -5 -4 -4 -4 -4 -4 -3 -3 -3 -2 -1 --------- Run | Scr Mat Min Exi Min Mat Sto Fac Low Low Dat Pro Fac Ext Cet Arc Hub Fac Upp Upp Zhi Pro Fac Upp Upp War Pro Res Qua Res Acc Total 30437 | . 855 772 366 373 1826 1347 1166 688 443 99 1246 802 1459 383 596 1117 944 953 470 321 707 2097 654 927 2307 3132 783 1954 632 1018 Wait 5863 | . 30 18 2 121 512 320 144 . 11 . 88 229 257 33 483 350 97 66 13 . 42 538 7 23 409 1397 139 393 58 83 Move 20731 | . 735 727 355 230 1073 783 834 648 402 93 1045 495 987 271 88 601 727 857 420 285 612 1213 638 872 1573 1442 478 1154 405 688 Hop . | . . . . . . . . . . . . . . . . . . . . . . . . . . . . . . . Pick Up 352 | . 21 3 4 . 42 22 23 5 2 . 17 7 23 12 2 8 10 3 1 5 2 24 1 1 35 6 21 25 13 14 Fast Attach 166 | . 2 . . . 11 7 5 3 3 3 7 1 6 10 2 12 3 3 . 9 5 19 . . 11 8 8 17 4 7 Attach 128 | . 4 . . 4 11 8 7 3 . . 11 3 14 . . 5 3 1 2 1 . 11 . . 8 . 4 7 3 18 Detach 56 | . . . . . 7 1 4 1 . . 1 . 2 2 . 3 1 3 . 1 . 4 . . 3 3 . 8 1 11 Swap 471 | . 5 4 2 1 12 25 33 10 4 . 10 14 24 8 2 24 17 8 8 1 9 82 4 3 44 16 30 41 18 12 Drop 421 | . 12 5 3 . 31 28 27 5 6 3 12 4 22 25 4 18 10 6 1 12 6 33 1 1 35 16 28 39 15 13 Fire 1925 | . 25 7 . 17 121 149 84 9 15 . 50 40 100 18 15 94 75 6 17 . 31 169 3 27 189 101 75 225 114 149 Melee 106 | . 19 7 . . . 3 . 4 . . . 1 . 4 . . . . . . . . . . . . . 45 1 22 Ram 1 | . . . . . . . . . . . . . . . . . . . . . . . . . . . . . . 1 Kick . | . . . . . . . . . . . . . . . . . . . . . . . . . . . . . . . Crush 37 | . 2 1 . . 6 1 5 . . . . 4 5 . . 2 1 . . 6 . 4 . . . . . . . . Escape Stasis 8 | . . . . . . . . . . . . 4 4 . . . . . . . . . . . . . . . . . Rewire 172 | . . . . . . . . . . . 5 . 15 . . . . . 8 1 . . . . . 143 . . . . Trap . | . . . . . . . . . . . . . . . . . . . . . . . . . . . . . . . Miscellaneous . | . . . . . . . . . . . . . . . . . . . . . . . . . . . . . . . Route ------- -11/Scrapyard -10/Materials (discovered 5 exits: [*Mat x3] / [*Min x2]) -10/Mines (discovered 3 exits: [*Mat x2] / *Exi) -10/Exiles -9/Mines -8/Materials (discovered 2 exits: *Fac / *Sto) -8/Storage (discovered 2 exits: *Fac / [Rec]) -7/Factory (discovered 3 exits: *Fac / *Low x2) -7/Lower Caves -7/Lower Caves (discovered 2 exits: *Fac / *Dat) -7/Data Miner -6/Proximity Caves -6/Factory (discovered 2 exits: Fac / *Ext) -6/Extension (discovered 2 exits: *Fac / *Cet) -6/Cetus (discovered 2 exits: *Fac / [*Arc]) -6/Archives (discovered 2 exits: *Fac / *Hub) -6/Hub_04(d) (discovered 2 exits: *Fac x2) -5/Factory (discovered 3 exits: *Fac / *Upp x2) -5/Upper Caves -5/Upper Caves -5/Zhirov -4/Proximity Caves -4/Factory (discovered 4 exits: *Res x2 / *Upp x2) -4/Upper Caves -4/Upper Caves -4/Warlord -3/Proximity Caves -3/Research (discovered 5 exits: *Res x2 / Arm / *Qua x2) -3/Quarantine -2/Research (discovered 2 exits: *Acc / [*Tes]) -1/Access (discovered 1 exit: Com) History --------- Turn | Location | Event 1 | -11/Scrapyard | Discovered new exit (range 0) 1 | -11/Scrapyard | Entered Materials 20 | -10/Materials | Discovered new exit (range 14) 230 | -10/Materials | Discovered new exit (range 6) 338 | -10/Materials | Build established: Mutant 504 | -10/Materials | Discovered new exit (range 15) 580 | -10/Materials | Discovered new exit (range 13) 580 | -10/Materials | Discovered new exit (range 15) 1397 | -10/Materials | Entered Mines 1516 | -10/Mines | Received a Rocket Launcher from a helpful Derelict 1545 | -10/Mines | Deemed a non-threat by the Exiles lab entrance 1595 | -10/Mines | Discovered new exit (range 11) 1631 | -10/Mines | Assisted by bots powering up and referring to "LRC-V3" 1735 | -10/Mines | Learned location of Recycling (-8) 2222 | -10/Mines | Discovered new exit (range 11) 2271 | -10/Mines | Learned location of Zion (-6) 2453 | -10/Mines | A weapon hastily lodged in a ceiling crevice suddenly fell to the ground 2546 | -10/Mines | Discovered new exit (range 5) 2556 | -10/Mines | Entered Exiles 2556 | -10/Exiles | Accompanied by 2 allies 2585 | -10/Exiles | Met 8R-AWN 2606 | -10/Exiles | Met EX-HEX 2690 | -10/Exiles | Met EX-DEC 2906 | -10/Exiles | Discovered new exit (range 11) 3027 | -10/Exiles | Entered Mines 3027 | -9/Mines | Accompanied by 2 allies 3124 | -9/Mines | Build established: Hauler-Mutant 3323 | -9/Mines | Discovered new exit (range 11) 3394 | -9/Mines | Assembled infested the area 3399 | -9/Mines | Assisted by a Guerilla fighting off Assembled 3419 | -9/Mines | Core integrity fell below 50% 3443 | -9/Mines | Core integrity fell below 20% 3479 | -9/Mines | Lost 4 parts (1p2n1w) 3480 | -9/Mines | Destroyed 11 combat bots 3545 | -9/Mines | Entered Materials 3545 | -8/Materials | Evolved 4 slots: Utility x4 4411 | -8/Materials | Discovered new exit (range 10) 4417 | -8/Materials | Identified exit to Storage 4588 | -8/Materials | Repaired Adv. Beam Rifle 4628 | -8/Materials | Repaired Reflective Plating 4655 | -8/Materials | Repaired Grenade Launcher 4682 | -8/Materials | Repaired Lgt. Treads 4942 | -8/Materials | Central database locked down 6252 | -8/Materials | Repaired Adv. Beam Rifle 6280 | -8/Materials | Repaired Structural Scanner 6614 | -8/Materials | Entered Storage 6627 | -8/Storage | Met a pair of Derelict thieves 6766 | -8/Storage | Destroyed 8 combat bots 7055 | -8/Storage | Repaired Imp. Medium Armor Plating 7082 | -8/Storage | Repaired Lgt. Treads 7429 | -8/Storage | Core integrity fell below 50% 7487 | -8/Storage | Lost 4 parts (1p2u1w) 7778 | -8/Storage | Discovered new exit (range 15) 8094 | -8/Storage | Garrison activated, responded to threat 8460 | -8/Storage | Core integrity fell below 20% 8868 | -8/Storage | Discovered new exit (range 10) 9051 | -8/Storage | Entered Factory 9051 | -7/Factory | Evolved 2 slots: Propulsion x1, Weapon x1 9142 | -7/Factory | Discovered new exit (range 12) 9459 | -7/Factory | Build established: Hauler-Tank 10000 | -7/Factory | Garrison activated, responded to threat 10576 | -7/Factory | Identified exit to Lower Caves 11051 | -7/Factory | First assault squad dispatched 11084 | -7/Factory | Entered Lower Caves 11389 | -7/Lower Caves | Spotted B-75 Beast 11459 | -7/Lower Caves | Found Alien Artifact 11563 | -7/Lower Caves | Discovered new exit (range 11) 11744 | -7/Lower Caves | Build established: Hauler-Mutant 12180 | -7/Lower Caves | Destroyed B-75 Beast 12320 | -7/Lower Caves | Entered another Lower Caves area 12343 | -7/Lower Caves | Discovered new exit (range 8) 12349 | -7/Lower Caves | Learned 4 Factory zone layouts 12509 | -7/Lower Caves | Learned 4 Factory zone layouts 12733 | -7/Lower Caves | Encountered a Warlord checkpoint 12838 | -7/Lower Caves | Attacked by a faux Warlord 12962 | -7/Lower Caves | Discovered new exit (range 9) 13048 | -7/Lower Caves | Build established: Hauler-Tank 13115 | -7/Lower Caves | Entered Data Miner 13117 | -7/Data Miner | Discovered new exit (range 6) 13151 | -7/Data Miner | Met Data Miner 13187 | -7/Data Miner | Learned location of Section 7 (-2) 13187 | -7/Data Miner | Acquired the access code to Warlord's prototype stash 13216 | -7/Data Miner | Received God Mode back door access code from Data Miner 13289 | -7/Data Miner | Entered Proximity Caves 13492 | -6/Proximity Caves | Received a Behemoth hack from an annoying Tinkerer 13639 | -6/Proximity Caves | Escorted by Enhanced Grunt 13892 | -6/Proximity Caves | Attracted the attention of an 0b10 outpost 13979 | -6/Proximity Caves | Lost 6 parts (2n2u2w) 13983 | -6/Proximity Caves | Found Prototype Device 13983 | -6/Proximity Caves | Identified Exp. Thermal Shield 14064 | -6/Proximity Caves | Spotted B-75 Beast 14150 | -6/Proximity Caves | Destroyed B-75 Beast 14171 | -6/Proximity Caves | Lost 4 parts (2n1u1w) 14185 | -6/Proximity Caves | Discovered new exit (range 12) 14199 | -6/Proximity Caves | Build established: Hauler-Gunner 14258 | -6/Proximity Caves | Learned Factory interactive machine intel 14306 | -6/Proximity Caves | Attracted the attention of an 0b10 checkpoint 15547 | -6/Proximity Caves | Entered Factory 15547 | -6/Factory | Evolved 2 slots: Utility x2 15548 | -6/Factory | Identified exit to Factory 15549 | -6/Factory | Loaded intel: 43 interactive machine locations 15692 | -6/Factory | Incoming investigation squad redirected 15696 | -6/Factory | Discovered new exit (range 10) 16450 | -6/Factory | Build established: Scavenger-Tank 16553 | -6/Factory | Repaired Broken Imp. Medium Treads 16666 | -6/Factory | Garrison activated, responded to threat 16787 | -6/Factory | Identified exit to Extension 16917 | -6/Factory | Entered Extension 17006 | -6/Extension | Rescued a captive Derelict 17293 | -6/Extension | Rescued a captive Derelict 17316 | -6/Extension | Build established: Scavenger-Mutant 18203 | -6/Extension | Spotted B-75 Beast 18230 | -6/Extension | Spotted B-75 Beast 18264 | -6/Extension | Lost 3 parts (1n1u1w) 18467 | -6/Extension | Disrupted transfer network 18475 | -6/Extension | Destroyed B-75 Beast 18517 | -6/Extension | Destroyed B-75 Beast 18545 | -6/Extension | Lost 7 parts (1n3u3w) 18756 | -6/Extension | Rescued A7 18779 | -6/Extension | Rescued a captive Derelict 18779 | -6/Extension | Rescued a captive Derelict 18819 | -6/Extension | Rescued a captive Derelict 19272 | -6/Extension | Discovered exit to Factory (range 10) 19274 | -6/Extension | Discovered new exit (range 6) 19315 | -6/Extension | Identified exit to Cetus 19323 | -6/Extension | Entered Cetus 19323 | -6/Cetus | Accompanied by 13 allies (A7) 19328 | -6/Cetus | Acquired a Cetus Manufacturing Module code from A7 19349 | -6/Cetus | Spotted Cetus Guard 19349 | -6/Cetus | Spotted Cetus Guard 19352 | -6/Cetus | Spotted Cetus Guard 19353 | -6/Cetus | Allies destroyed Cetus Guard 19357 | -6/Cetus | Spotted Cetus Guard 19365 | -6/Cetus | Allies destroyed Cetus Guard 19365 | -6/Cetus | Allies destroyed Cetus Guard 19367 | -6/Cetus | Allies destroyed Cetus Guard 19396 | -6/Cetus | Cetus Manufacturing Module disabled 19518 | -6/Cetus | Escorted A7 to Cetus Mainframe 19564 | -6/Cetus | Found a strange terminal 19600 | -6/Cetus | Discovered new exit (range 15) 19637 | -6/Cetus | Spotted Cetus Guard 19637 | -6/Cetus | Spotted Cetus Guard 19643 | -6/Cetus | Allies destroyed Cetus Guard 19643 | -6/Cetus | Spotted Cetus Guard 19643 | -6/Cetus | Destroyed Cetus Guard 19643 | -6/Cetus | Destroyed Cetus Guard 19644 | -6/Cetus | Spotted Cetus Guard 19652 | -6/Cetus | Destroyed Cetus Guard 19661 | -6/Cetus | Discovered exit to Factory (range 15) 19670 | -6/Cetus | Met Revision 17 19866 | -6/Cetus | Destroyed Revision 17 19950 | -6/Cetus | Entered Archives 19950 | -6/Archives | Accompanied by 2 allies (A7) 19955 | -6/Archives | Received a hacking code to weaken MAIN.C 20099 | -6/Archives | Discovered exit to Factory (range 15) 20122 | -6/Archives | Discovered new exit (range 15) 20253 | -6/Archives | Build established: Scavenger-Tank 20650 | -6/Archives | Entered Hub_04(d) 21061 | -6/Hub_04(d) | Discovered exit to Factory (range 4) 21225 | -6/Hub_04(d) | Garrison activated, responded to threat 21406 | -6/Hub_04(d) | Discovered exit to Factory (range 5) 21575 | -6/Hub_04(d) | Garrison activated, responded to threat 21681 | -6/Hub_04(d) | Network Hub disabled 21846 | -6/Hub_04(d) | Garrison activated, responded to threat 22050 | -6/Hub_04(d) | First assault squad dispatched 22073 | -6/Hub_04(d) | Incoming assault squad redirected 22073 | -6/Hub_04(d) | Incoming assault squad redirected 22143 | -6/Hub_04(d) | Spotted Lightning 22155 | -6/Hub_04(d) | Spotted Lightning 22181 | -6/Hub_04(d) | Destroyed Lightning 22191 | -6/Hub_04(d) | System corruption reached 10% 22202 | -6/Hub_04(d) | Destroyed Lightning 22206 | -6/Hub_04(d) | Found Prototype Device 22206 | -6/Hub_04(d) | Identified EM Dispersion Field 22293 | -6/Hub_04(d) | Spotted Lightning 22317 | -6/Hub_04(d) | Destroyed Lightning 22330 | -6/Hub_04(d) | Found Prototype Device 22330 | -6/Hub_04(d) | Identified Exp. Phase Shifter 22353 | -6/Hub_04(d) | Found Prototype Energy Cannon 22353 | -6/Hub_04(d) | Identified EMDS 22357 | -6/Hub_04(d) | Found Exp. Targeting Computer 22425 | -6/Hub_04(d) | Incoming assault squad redirected 22462 | -6/Hub_04(d) | Entered Factory 22462 | -5/Factory | Evolved 2 slots: Propulsion x1, Utility x1 22578 | -5/Factory | Incoming investigation squad redirected 22618 | -5/Factory | Identified exit to Upper Caves 23117 | -5/Factory | Discovered new exit (range 5) 23497 | -5/Factory | Repaired Centrium Medium Armor Plating 23557 | -5/Factory | Build established: Scavenger-Mutant 23625 | -5/Factory | Incoming investigation squad redirected 23962 | -5/Factory | Entered Upper Caves 24520 | -5/Upper Caves | Build established: Scavenger-Tank 25166 | -5/Upper Caves | Learned Factory terminal intel 25168 | -5/Upper Caves | Discovered new exit (range 5) 25438 | -5/Upper Caves | Entered another Upper Caves area 25663 | -5/Upper Caves | Attracted the attention of an 0b10 outpost 25717 | -5/Upper Caves | Destroyed 7 combat bots 25913 | -5/Upper Caves | Encountered a Warlord checkpoint 26008 | -5/Upper Caves | Build established: Scavenger-Mutant 26111 | -5/Upper Caves | Discovered new exit (range 14) 26192 | -5/Upper Caves | Entered Zhirov 26192 | -5/Zhirov | Accompanied by 2 allies 26194 | -5/Zhirov | Discovered new exit (range 3) 26223 | -5/Zhirov | Met Zhirov 26252 | -5/Zhirov | Learned location of Quarantine (-3) 26252 | -5/Zhirov | Learned location of Command (-1) 26276 | -5/Zhirov | Zhirov requested help retrieving the SGEMP Prototype 26313 | -5/Zhirov | Found Alien Artifact 26313 | -5/Zhirov | Identified Integrated Dissipator 26313 | -5/Zhirov | Installed Integrated Dissipator, increased core heat dissipation (+20) 26489 | -5/Zhirov | Build established: Hauler-Mutant 26567 | -5/Zhirov | Found Alien Artifact 26687 | -5/Zhirov | Entered Proximity Caves 26687 | -4/Proximity Caves | Accompanied by 2 allies 26858 | -4/Proximity Caves | Attracted the attention of an 0b10 checkpoint 27115 | -4/Proximity Caves | Learned Research emergency access door positions 27183 | -4/Proximity Caves | Build established: Scavenger-Mutant 27648 | -4/Proximity Caves | Discovered new exit (range 10) 27892 | -4/Proximity Caves | Entered Factory 27892 | -4/Factory | Evolved 2 slots: Power x1, Utility x1 27893 | -4/Factory | Loaded intel: 20 terminal locations 28030 | -4/Factory | Repaired Centrium Heavy Treads? 28075 | -4/Factory | Build established: Scavenger-Tank 28153 | -4/Factory | Repaired Centrium Medium Armor Plating 28248 | -4/Factory | Found Prototype Slashing Weapon 28248 | -4/Factory | Identified Centrium Greatsword 28478 | -4/Factory | Repaired Imp. KE Penetrator 28523 | -4/Factory | Repaired Imp. Shield Generator 28551 | -4/Factory | Repaired Hcp. Storage Unit 28602 | -4/Factory | Repaired Imp. Heavy Armor Plating 28710 | -4/Factory | Repaired Centrium Heavy Treads 28766 | -4/Factory | Repaired KE Penetrator 28811 | -4/Factory | Repaired Proton Missile Launcher 28924 | -4/Factory | Spotted B-86 Titan 29184 | -4/Factory | Discovered new exit (range 13) 29232 | -4/Factory | Identified exit to Research 29431 | -4/Factory | Fabricated Exp. Targeting Computer (x1) 29769 | -4/Factory | Identified exit to Upper Caves 29989 | -4/Factory | Garrison activated, responded to threat 30392 | -4/Factory | First assault squad dispatched 30497 | -4/Factory | Discovered exit to Research (range 22) 30908 | -4/Factory | Incoming assault squad redirected 30914 | -4/Factory | Fabricated Mni. Smartbomb Launcher (x1) 30915 | -4/Factory | Incoming assault squad redirected 31050 | -4/Factory | Build established: Hauler-Mutant 31172 | -4/Factory | Incoming assault squad redirected 31224 | -4/Factory | Incoming investigation squad redirected 31260 | -4/Factory | Entered Upper Caves 31421 | -4/Upper Caves | Learned Research emergency access door positions 31547 | -4/Upper Caves | Build established: Hauler-Tank 31814 | -4/Upper Caves | Discovered new exit (range 10) 31932 | -4/Upper Caves | Build established: Hauler-Mutant 32432 | -4/Upper Caves | Entered another Upper Caves area 33064 | -4/Upper Caves | Attracted the attention of an 0b10 checkpoint 33579 | -4/Upper Caves | Spotted B-86 Titan 33996 | -4/Upper Caves | Discovered new exit (range 10) 34094 | -4/Upper Caves | Entered Warlord 34156 | -4/Warlord | System corruption cleaned by Quarantine Array 34631 | -4/Warlord | Found Signal Generator 34633 | -4/Warlord | Found Signal Generator 35037 | -4/Warlord | Met Warlord 35042 | -4/Warlord | Warlord's base attacked by MAIN.C 35055 | -4/Warlord | Opened Warlord's prototype stash 35060 | -4/Warlord | Found Prototype Reactor 35067 | -4/Warlord | Found Prototype Device 35067 | -4/Warlord | Identified Exp. Cloaking Device 35082 | -4/Warlord | Found Prototype Device 35082 | -4/Warlord | Identified System Purifier 35092 | -4/Warlord | Found Prototype Hackware 35367 | -4/Warlord | Spotted Executioner 35386 | -4/Warlord | Spotted Striker 35392 | -4/Warlord | Warlord forces counterattacked 35446 | -4/Warlord | Spotted Executioner 35476 | -4/Warlord | Destroyed 7 combat bots 35542 | -4/Warlord | Spotted Striker 35542 | -4/Warlord | Spotted Executioner 35571 | -4/Warlord | Identified Vortex Chain Reactor 35642 | -4/Warlord | Spotted Executioner 35642 | -4/Warlord | Spotted Striker 35650 | -4/Warlord | Destroyed Executioner 35742 | -4/Warlord | Spotted Striker 35742 | -4/Warlord | Spotted Executioner 35742 | -4/Warlord | Spotted Executioner 35746 | -4/Warlord | Destroyed Striker 35773 | -4/Warlord | Destroyed 8 combat bots 35844 | -4/Warlord | Spotted Striker 35855 | -4/Warlord | Destroyed Striker 35859 | -4/Warlord | Spotted Executioner 35911 | -4/Warlord | Destroyed 8 combat bots 35994 | -4/Warlord | Spotted Executioner 36050 | -4/Warlord | Spotted Striker 36091 | -4/Warlord | Spotted Executioner 36093 | -4/Warlord | Spotted Executioner 36102 | -4/Warlord | Spotted Striker 36172 | -4/Warlord | Spotted B-90 Cyclops 36187 | -4/Warlord | Spotted Executioner 36189 | -4/Warlord | Spotted B-86 Titan 36260 | -4/Warlord | Spotted Striker 36306 | -4/Warlord | Spotted Striker 36307 | -4/Warlord | Spotted Executioner 36360 | -4/Warlord | Spotted Executioner 36386 | -4/Warlord | Spotted Striker 36387 | -4/Warlord | Spotted Executioner 36496 | -4/Warlord | Spotted Striker 36525 | -4/Warlord | Destroyed 10 combat bots 36525 | -4/Warlord | Allies destroyed Striker 36527 | -4/Warlord | Spotted Executioner 36847 | -4/Warlord | Found Prototype Energy Cannon 36847 | -4/Warlord | Identified Vortex Cannon 37229 | -4/Warlord | Build established: Scavenger-Tank 37297 | -4/Warlord | Found Prototype Device 37297 | -4/Warlord | Identified Adv. Kinecellerator 37643 | -4/Warlord | Discovered new exit (range 15) 37905 | -4/Warlord | Entered Proximity Caves 37905 | -3/Proximity Caves | Accompanied by 4 allies 38391 | -3/Proximity Caves | Attracted the attention of an 0b10 base 38750 | -3/Proximity Caves | Attracted the attention of an 0b10 checkpoint 38832 | -3/Proximity Caves | Spotted B-86 Titan 40292 | -3/Proximity Caves | Destroyed B-86 Titan 40311 | -3/Proximity Caves | Entered a huge 0b10 base via the front door 40493 | -3/Proximity Caves | Build established: Scavenger-Mutant 40833 | -3/Proximity Caves | Derelicts attacked a huge 0b10 base 40846 | -3/Proximity Caves | Build established: Scavenger-Tank 40866 | -3/Proximity Caves | Discovered exit to Research (range 23) 42359 | -3/Proximity Caves | Entered Research 42359 | -3/Research | Accompanied by 9 allies 42359 | -3/Research | Evolved 2 slots: Utility x2 42375 | -3/Research | Identified Ghost Barrier 42733 | -3/Research | Lost 3 parts (1u2w) 42739 | -3/Research | Destroyed 7 combat bots 42840 | -3/Research | Identified exit to Armory 42840 | -3/Research | Identified exit to Quarantine 43068 | -3/Research | Discovered new exit (range 20) 43337 | -3/Research | Garrison activated, responded to threat 43438 | -3/Research | Discovered new exit (range 13) 43537 | -3/Research | Found Antimissile System 43577 | -3/Research | Spotted B-90 Cyclops 43612 | -3/Research | Destroyed B-90 Cyclops 43664 | -3/Research | Found Quantum Capacitor 43667 | -3/Research | Entered Quarantine 43711 | -3/Quarantine | Build established: Scavenger-Mutant 44050 | -3/Quarantine | Repaired Centrium Heavy Treads 44102 | -3/Quarantine | Repaired Imp. Heavy Armor Plating 44164 | -3/Quarantine | Repaired Quantum Capacitor 44363 | -3/Quarantine | Found Alien Artifact 44363 | -3/Quarantine | Identified Core Reset Matrix 44363 | -3/Quarantine | Identified Dimensional Node Initializer 44363 | -3/Quarantine | Identified Transdimensional Reconstructor 44363 | -3/Quarantine | Used Core Reset Matrix 44367 | -3/Quarantine | Detected hypermatrix surge 44367 | -3/Quarantine | Sensed 13 artifacts in vicinity 44464 | -3/Quarantine | Found Subatomic Replicator 44648 | -3/Quarantine | Destroyed 7 combat bots 44788 | -3/Quarantine | Found Sigix Broadsword 44833 | -3/Quarantine | Initialized slip node 44843 | -3/Quarantine | Found Dimensional Node Initializer 44850 | -3/Quarantine | Found Transdimensional Reconstructor 44850 | -3/Quarantine | Warped through subspace to slip node 45005 | -3/Quarantine | Met incapacitated Sigix Warrior 45005 | -3/Quarantine | Lockdown squad dispatched 45025 | -3/Quarantine | Acquired the access code to the Sigix quarantine chamber 45028 | -3/Quarantine | Unlocked Sigix quarantine chamber 45089 | -3/Quarantine | Build established: Hauler-Mutant 45167 | -3/Quarantine | First assault squad dispatched 45193 | -3/Quarantine | Incoming assault squad redirected 45211 | -3/Quarantine | Spotted Lightning 45220 | -3/Quarantine | Spotted Lightning 45242 | -3/Quarantine | Destroyed Lightning 45246 | -3/Quarantine | Destroyed Lightning 45247 | -3/Quarantine | Spotted Lightning 45258 | -3/Quarantine | Destroyed Lightning 45312 | -3/Quarantine | Found EMDS 45578 | -3/Quarantine | Incoming investigation squad redirected 45606 | -3/Quarantine | Found Matter Drive 46082 | -3/Quarantine | Found Phase Armor 46114 | -3/Quarantine | Found Core Stripper 46216 | -3/Quarantine | Discovered new exit (range 16) 46733 | -3/Quarantine | Entered Research 46733 | -2/Research | Warlord forces began assault on 0b10 46733 | -2/Research | Evolved 2 slots: Utility x1, Weapon x1 46785 | -2/Research | Met up with Warlord 46843 | -2/Research | Research machine network offline 46999 | -2/Research | Spotted Striker 47008 | -2/Research | Destroyed Striker 47044 | -2/Research | Spotted Executioner 47056 | -2/Research | Spotted Striker 47064 | -2/Research | Destroyed Striker 47130 | -2/Research | Borebot progress halted 47157 | -2/Research | Discovered new exit (range 6) 47160 | -2/Research | Borebot progress halted 47305 | -2/Research | Spotted Executioner 47307 | -2/Research | Destroyed Executioner 47311 | -2/Research | Spotted Executioner 47325 | -2/Research | Destroyed Executioner 47375 | -2/Research | Build established: Scavenger-Mutant 47405 | -2/Research | Spotted Striker 47417 | -2/Research | Destroyed Striker 47426 | -2/Research | Spotted Striker 47430 | -2/Research | Destroyed Striker 47430 | -2/Research | Spotted Executioner 47433 | -2/Research | Spotted Striker 47435 | -2/Research | Destroyed Executioner 47448 | -2/Research | Destroyed Striker 47469 | -2/Research | Destroyed 7 combat bots 47553 | -2/Research | Spotted Executioner 47566 | -2/Research | Borebot progress halted 47666 | -2/Research | Discovered new exit (range 16) 47704 | -2/Research | Build established: Hauler-Mutant 47721 | -2/Research | Entered Access 47721 | -1/Access | Evolved 2 slots: Utility x2 47847 | -1/Access | Incoming assault squad redirected 47994 | -1/Access | Spotted B-99 Colossus 48088 | -1/Access | Incoming assault squad redirected 48131 | -1/Access | Build established: Scavenger-Mutant 48221 | -1/Access | First assault squad dispatched 48237 | -1/Access | Incoming assault squad redirected 48691 | -1/Access | Lost 4 parts (4u) 48697 | -1/Access | Destroyed 16 combat bots 48705 | -1/Access | Identified exit to Command 48743 | -1/Access | Incoming assault squad redirected 48748 | -1/Access | Incoming assault squad redirected 48899 | -1/Access | Build established: Hauler-Mutant 48995 | -1/Access | Incoming assault squad redirected 49022 | -1/Access | High security lockdown imminent 49059 | -1/Access | Destroyed 7 combat bots 49102 | -1/Access | High security lockdown engaged 49122 | -1/Access | Spotted B-99 Colossus 49148 | -1/Access | Warped through subspace 49243 | -1/Access | Spotted Executioner 49243 | -1/Access | Spotted Striker 49249 | -1/Access | Destroyed Striker 49255 | -1/Access | Destroyed Executioner 49297 | -1/Access | Destroyed 12 combat bots 49356 | -1/Access | Spotted B-99 Colossus 49356 | -1/Access | Spotted B-99 Colossus 49376 | -1/Access | Scanned by Researcher 49393 | -1/Access | Self-destructed Last Messages --------------- 49378_ Broken Lgt. Quantum Reactor destroyed. 49379_ Penetrated by Slug. 49381_ Slug penetrates Sealed Heavy Doors. 49381_ Penetrated by Slug. 49384_ Slug penetrates Sealed Heavy Doors. 49384_ Penetrated by Slug. 49385_ Held in stasis. 49385_ Investigator is analyzing... 49387_ Penetrated by Slug. 49388_ Slug penetrates Sealed Heavy Doors. 49388_ Penetrated by Slug. 49388_ Slug penetrates Sealed Heavy Doors. 49388_ Held in stasis. 49388_ Investigator is analyzing... 49388_ Slug penetrates Sealed Heavy Doors. 49388_ Penetrated by Slug. 49391_ Held in stasis. 49391_ Investigator is analyzing... 49391_ Slug penetrates Sealed Heavy Doors. 49391_ Penetrated by Slug. Map ----- +----------------------------------------------------+ | ?? # # ???????????????????????? | | # # "" #??????????????????????? | | # # "" #??????????????????????? | | ?# # """""????????????????????????? | | ?# # """"?????????????????????????? | | ?+ + "??????????????????????????? | | ??# # "??????????????????????????? | | ??# # ?????????????????????????? | | ###### # ?????????????????????????? | | ### # ????????????????????????? | | ??# # ??????????????????????????? | | ??# ########????????????????????????????? | | ??# #### ########????????????????????????????? | | ??# ????# # ! #????????????????????????????? | | ??# ?????# #! #????????????????????????????? | | ??#??????# # ] #######??????????????????????? | | ?????????# ## #??????????????????????? | | ?????????# + ## #??????????????????????? | | ?????????# !## ???????????????????????? | | ?????????# [ ## #???????????????????????? | | ?????????# = ## #???????????????????????? | | ?????????# ] ## #???????????????????????? | | ????????## ###### #???????????????????????? | | ????????# ##### h #???????????????????????? | | ????????# "" % "m g""??????????????????????? | | ????????# "T ggl@"??????????????????????? | | ????????# " c ""??????????????????????? | | ????????# ########h #???>???????????????????? | | ????????#######??????# ???????????????????????? | | ?????????????????????# #???????????????????????? | | ?????????????????????# #???????????????????????? | | ?????????????????????# ???????????????????????? | | ?????????????????????# ???????????????????????? | | ?????????????????????# #??????????????????????? | | ?????????????????????# #??????????????????????? | | ?????????????????????######??????????????????????? | | ?????????????????????????????????????????????????? | | ?????????????????????????????????????????????????? | | ?????????????????????????????????????????????????? | | ?????????????????????????????????????????????????? | | ?????????????????????????????????????????????????? | | ?????????????????????????????????????????????????? | | ?????????????????????????????????????????????????? | | ?????????????????????????????????????????????????? | | ?????????????????????????????????????????????????? | | ?????????????????????????????????????????????????? | | ?????????????????????????????????????????????????? | | ?????????????????????????????????????????????????? | | ?????????????????????????????????????????????????? | | ?????????????????????????????????????????????????? | +----------------------------------------------------+ Best States ------------- Heat Dissipation 129 Energy Generation 55 Energy Capacity 1165 Matter Stores 300 Matter Capacity 300 Sight Range 23 Robot Scan Range 20 Terrain Scan Density 10 Jamming Range 16 Armor Coverage 1650 Resistance: KI 30 Resistance: TH 30 Resistance: EM 75 Utility Shielding 66 Weapon Shielding 90 Point Defense Rating 240 Evasion (%) 40 Targeting Accuracy 12 Recoil Reduction 4 Kinecelleration 50 Stasis Canceling 1 Offensive Hacking 14 Defensive Hacking 20 Item Schematics ----------------- None Robot Schematics ------------------ None Fabricated ------------ Exp. Targeting Computer | x1 | -4/Factory Mni. Smartbomb Launcher | x1 | -4/Factory Alien Tech Used ----------------- Integrated Dissipator Core Reset Matrix Sigix Broadsword Dimensional Node Initializer Transdimensional Reconstructor Matter Drive Achievements -------------- None Challenges ------------ None Game ------ Seed CloakingHeatWheel Manual? 0 Play Time 07:38:45 Cumulative 298.8 hours Start 2021.01.01 @ 19:25:13 End 2021.01.02 @ 17:16:23 Sessions 5 Manual Loads 0 Difficulty Rogue Special Mode None Game No. 115 Rogue 114 Adventurer 1 Explorer 0 Win Type - Total 12 Types 7/1/2/1/0/0/1/0/0 Lore% 86 Gallery% 88 Achievement% 73 Wizard Run 0 Options --------- ASCII 1 Keyboard 1 Movement Numpad Keybinds 0 Fullscreen 0 Font 18/Smallcaps Map View 76x50 Tactical HUD 1 Map Filters NONE Filters NONE Steam 1 RUN: 294b632c-26d5-448b-b18c-9a43f7d61078